fUSD/lending_fUSD_20250125
["ID","MTS","AMOUNT","RATE_DAILY","PERIOD"]
[350329736,1737797485264,-599.6,0.00019622,2]
[350329737,1737797485273,-703.57,0.00019622,2]
[350329738,1737797485283,-577.49,0.00019622,2]
[350329739,1737797485293,-767.15,0.00019622,2]
[350329740,1737797485303,-730.31,0.00019622,2]
[350329741,1737797485313,-502.52,0.00019622,2]
[350329742,1737797485323,-734.62,0.00019622,2]
[350329743,1737797485332,-685.56,0.00019622,2]
[350329744,1737797485341,-730.02,0.00019622,2]
[350329745,1737797485351,-509.44,0.00019622,2]
[350329746,1737797485360,-500.0,0.00019622,2]
[350329747,1737797485370,-590.44,0.00019622,2]
[350329748,1737797485379,-564.49,0.00019622,2]
[350329749,1737797485389,-602.74,0.00019622,2]
[350329750,1737797485398,-670.66,0.00019622,2]
[350329751,1737797485407,-542.87,0.00019622,2]
[350329752,1737797485417,-599.52,0.00019622,2]
[350329753,1737797485426,-463.50317557,0.00019622,2]
[350329754,1737797485435,-717.06,0.00019622,2]
[350329755,1737797485444,-151.0,0.00019623,2]
[350329756,1737797485453,-150.0,0.00019633,2]
[350329757,1737797485462,-150.0,0.00019638,2]
[350329758,1737797485471,-500.0,0.00019659,2]
[350329759,1737797485479,-500.0,0.00019659,2]
[350329760,1737797485489,-500.0,0.00019659,2]
[350329761,1737797485498,-500.0,0.00019659,2]
[350329762,1737797485507,-500.0,0.00019659,2]
[350329763,1737797485516,-500.0,0.00019659,2]
[350329764,1737797485526,-500.0,0.00019659,2]
[350329765,1737797485535,-500.0,0.00019659,2]
[350329766,1737797485549,-500.0,0.00019659,2]
[350329767,1737797485559,-500.0,0.00019659,2]
[350329768,1737797485568,-500.0,0.00019659,2]
[350329769,1737797485577,-500.0,0.00019659,2]
[350329770,1737797485588,-500.0,0.00019659,2]
[350329771,1737797485597,-500.0,0.00019659,2]
[350329772,1737797485606,-500.0,0.00019659,2]
[350329773,1737797485617,-500.0,0.00019659,2]
[350329774,1737797485628,-500.0,0.00019659,2]
[350329775,1737797485637,-500.0,0.00019659,2]
[350329776,1737797485646,-500.0,0.00019659,2]
[350329777,1737797485655,-500.0,0.00019659,2]
[350329778,1737797485665,-500.0,0.00019659,2]
[350329779,1737797485674,-500.0,0.00019659,2]
[350329780,1737797485684,-500.0,0.00019659,2]
[350329781,1737797485695,-500.0,0.00019659,2]
[350329782,1737797485704,-500.0,0.00019659,2]
[350329783,1737797485714,-500.0,0.00019659,2]
[350329784,1737797485723,-514.0,0.00019659,2]
[350329785,1737797485733,-150.0,0.00019664,2]
[350329786,1737797485742,-150.0,0.00019685,2]
[350329787,1737797485753,-252.93809162,0.00019688,2]
[350329788,1737797485763,-15030.5413631,0.000197,2]
[350329789,1737797485772,-173.57,0.00019719,2]
[350329790,1737797485783,-150.0,0.00019721,2]
[350329791,1737797485792,-847.51,0.00019723,2]
[350329792,1737797485802,-948.3,0.00019723,2]
[350329793,1737797485811,-892.9,0.00019723,2]
[350329794,1737797485821,-810.96,0.00019723,2]
[350329795,1737797485830,-2187.67,0.00019723,2]
[350329796,1737797485839,-790.46,0.00019723,2]
[350329797,1737797485848,-1160.27,0.00019723,2]
[350329798,1737797485858,-1757.48,0.00019723,2]
[350329799,1737797485868,-1272.01,0.00019723,2]
[350329800,1737797485877,-2144.12,0.00019723,2]
[350329801,1737797485887,-1761.29,0.00019723,2]
[350329802,1737797485896,-660.25,0.00019724,2]
[350329803,1737797485905,-556.36,0.00019724,2]
[350329804,1737797485915,-556.97,0.00019724,2]
[350329805,1737797485924,-554.44,0.00019724,2]
[350329806,1737797485933,-520.83,0.00019724,2]
[350329807,1737797485943,-388.65501949,0.00019724,2]
[350329808,1737797485952,-298.94729577,0.00019724,2]
[350329809,1737797485962,-500.0,0.00019724,2]
[350329810,1737797485971,-670.64,0.00019724,2]
[350329811,1737797485980,-602.32,0.00019724,2]
[350329812,1737797485989,-680.16,0.00019724,2]
[350329813,1737797485998,-529.1,0.00019724,2]
[350329814,1737797486008,-859.85,0.00019725,2]
[350329815,1737797486017,-1261.29,0.00019725,2]
[350329816,1737797486027,-414.733287,0.00019725,2]
[350329817,1737797486035,-886.87,0.00019725,2]
[350329818,1737797486045,-677.70576,0.00019725,2]
[350329819,1737797486055,-751.77,0.00019725,2]
[350329820,1737797486064,-1965.33,0.00019725,2]
[350329821,1737797486073,-1750.49,0.00019725,2]
[350329822,1737797486082,-620.77,0.00019725,2]
[350329823,1737797486092,-911.51,0.00019725,2]
[350329824,1737797486101,-153.002702,0.00019725,2]
[350329825,1737797486110,-1144.83,0.00019725,2]
[350329826,1737797486119,-3470.4,0.00019725,2]
[350329827,1737797486129,-670.47,0.00019725,2]
[350329828,1737797486138,-931.54,0.00019725,2]
[350329829,1737797486147,-1892.47,0.00019725,2]
[350329830,1737797486157,-1137.65,0.00019725,2]
[350329831,1737797486167,-526.37,0.00019725,2]
[350329832,1737797486175,-2356.62,0.00019725,2]
[350329833,1737797486185,-2776.17,0.00019725,2]
[350329834,1737797486194,-1575.32,0.00019725,2]
[350329835,1737797486203,-1053.08,0.00019725,2]
[350329836,1737797486213,-3004.39,0.00019725,2]
[350329837,1737797486221,-607.11,0.00019725,2]
[350329838,1737797486230,-854.74,0.00019725,2]
[350329839,1737797486240,-1162.18,0.00019725,2]
[350329840,1737797486249,-164.99159,0.00019726,2]
[350329841,1737797486259,-966.49,0.00019726,2]
[350329842,1737797486268,-1692.78,0.00019726,2]
[350329843,1737797486278,-1322.88,0.00019726,2]
[350329844,1737797486287,-3207.34,0.00019726,2]
[350329845,1737797486297,-1220.06,0.00019726,2]
[350329846,1737797486307,-1876.29,0.00019726,2]
[350329847,1737797486316,-3623.03,0.00019726,2]
[350329848,1737797486326,-1095.65,0.00019726,2]
[350329849,1737797486335,-893.22,0.00019726,2]
[350329850,1737797486344,-2172.47,0.00019726,2]
[350329851,1737797486354,-3965.67,0.00019726,2]
[350329852,1737797486364,-727.17,0.00019726,2]
[350329853,1737797486373,-993.89,0.00019726,2]
[350329854,1737797486383,-1799.67,0.00019726,2]
[350329855,1737797486392,-849.75,0.00019726,2]
[350329856,1737797486403,-681.52,0.00019726,2]
[350329857,1737797486412,-500.0,0.00019726,2]
[350329858,1737797486422,-500.0,0.00019726,2]
[350329859,1737797486556,-549.73,0.00019726,2]
[350329860,1737797486567,-807.75,0.00019726,2]
[350329861,1737797486577,-1101.59,0.00019726,2]
[350329862,1737797486587,-1244.19,0.00019726,2]
[350329863,1737797486597,-638.58,0.00019726,2]
[350329864,1737797486607,-2982.69,0.00019726,2]
[350329865,1737797486617,-150.0,0.0001973,2]
[350329866,1737797486626,-150.0,0.00019741,2]
[350329867,1737797486635,-150.0,0.00019741,2]
[350329868,1737797486645,-553.97,0.00019759,2]
[350329869,1737797486655,-584.38,0.00019759,2]
[350329870,1737797486664,-500.0,0.00019759,2]
[350329871,1737797486673,-584.16,0.00019759,2]
[350329872,1737797486684,-647.83,0.00019759,2]
[350329873,1737797486694,-572.01,0.00019759,2]
[350329874,1737797486704,-500.0,0.00019759,2]
[350329875,1737797486713,-704.28,0.00019759,2]
[350329876,1737797486723,-683.65,0.00019759,2]
[350329877,1737797486732,-544.45,0.00019759,2]
[350329878,1737797486741,-668.98,0.00019759,2]
[350329879,1737797486751,-558.68,0.00019759,2]
[350329880,1737797486765,-596.36,0.00019759,2]
[350329881,1737797486775,-531.39,0.00019759,2]
[350329882,1737797486784,-599.6,0.00019759,2]
[350329883,1737797486794,-703.57,0.00019759,2]
[350329884,1737797486804,-577.49,0.00019759,2]
[350329885,1737797486814,-767.15,0.00019759,2]
[350329886,1737797486825,-730.31,0.00019759,2]
[350329887,1737797486835,-502.52,0.00019759,2]
[350329888,1737797486846,-734.62,0.00019759,2]
[350329889,1737797486856,-685.56,0.00019759,2]
[350329890,1737797486866,-730.02,0.00019759,2]
[350329891,1737797486875,-509.44,0.00019759,2]
[350329892,1737797486885,-342.98445221,0.00019759,2]
[350329893,1737797486895,-590.44,0.00019759,2]
[350329894,1737797486905,-564.49,0.00019759,2]
[350329895,1737797486915,-602.74,0.00019759,2]
[350329896,1737797486925,-670.66,0.00019759,2]
[350329897,1737797486934,-542.87,0.00019759,2]
[350329898,1737797486944,-599.52,0.00019759,2]
[350329899,1737797486953,-717.06,0.00019759,2]
[350329900,1737797486963,-150.0,0.0001978,2]
[350329901,1737797486972,-188792.32742302,0.000198,4]
[350329902,1737797486981,-151.0,0.000198,2]
[350329903,1737797486991,-3979.41,0.000198,2]
[350329904,1737797487000,-1600.0,0.000198,7]
[350329905,1737797487009,-40012.92276854,0.000198,2]
[350329906,1737797487019,-151.0,0.000198,2]
[350329907,1737797487028,-150.0,0.000198,4]
[350329908,1737797487037,-150.0,0.000198,4]
[350329909,1737797487046,-173.15272143,0.000198,4]
[350329910,1737797487055,-150.0,0.000198,4]
[350329911,1737797487065,-150.17856381,0.000198,4]
[350329912,1737797487074,-150.29206,0.000198,4]
[350329913,1737797487084,-150.0,0.000198,4]
[350329914,1737797487093,-150.0,0.000198,4]
[350329915,1737797487103,-500.0,0.00019827,2]
[350329916,1737797487112,-150.0,0.00019829,2]
[350329917,1737797487121,-1857.52180965,0.00019831,2]
[350329918,1737797487131,-150.0,0.00019837,4]
[350329919,1737797487140,-14211.6663769,0.00019844,3]
[350329920,1737797487149,-847.51,0.0001986,2]
[350329921,1737797487158,-948.3,0.0001986,2]
[350329922,1737797487167,-892.9,0.0001986,2]
[350329923,1737797487176,-810.96,0.0001986,2]
[350329924,1737797487186,-2187.67,0.0001986,2]
[350329925,1737797487195,-790.46,0.0001986,2]
[350329926,1737797487205,-1160.27,0.0001986,2]
[350329927,1737797487214,-1757.48,0.0001986,2]
[350329928,1737797487223,-1272.01,0.0001986,2]
[350329929,1737797487233,-2144.12,0.0001986,2]
[350329930,1737797487242,-1761.29,0.0001986,2]
[350329931,1737797487251,-660.25,0.00019861,2]
[350329932,1737797487261,-556.36,0.00019861,2]
[350329933,1737797487270,-556.97,0.00019861,2]
[350329934,1737797487279,-554.44,0.00019861,2]
[350329935,1737797487288,-520.83,0.00019861,2]
[350329936,1737797487298,-188.77599612,0.00019861,2]
[350329937,1737797487307,-670.64,0.00019861,2]
[350329938,1737797487316,-602.32,0.00019861,2]
[350329939,1737797487326,-680.16,0.00019861,2]
[350329940,1737797487335,-529.1,0.00019861,2]
[350329941,1737797487344,-859.85,0.00019862,2]
[350329942,1737797487354,-1261.29,0.00019862,2]
[350329943,1737797487363,-414.733287,0.00019862,2]
[350329944,1737797487372,-886.87,0.00019862,2]
[350329945,1737797487382,-677.70576,0.00019862,2]
[350329946,1737797487391,-751.77,0.00019862,2]
[350329947,1737797487403,-1965.33,0.00019862,2]
[350329948,1737797487412,-1750.49,0.00019862,2]
[350329949,1737797487422,-620.77,0.00019862,2]
[350329950,1737797487433,-911.51,0.00019862,2]
[350329951,1737797487443,-1144.83,0.00019862,2]
[350329952,1737797487453,-3470.4,0.00019862,2]
[350329953,1737797487463,-670.47,0.00019862,2]
[350329954,1737797487473,-931.54,0.00019862,2]
[350329955,1737797487482,-1892.47,0.00019862,2]
[350329956,1737797487492,-1137.65,0.00019862,2]
[350329957,1737797487501,-526.37,0.00019862,2]
[350329958,1737797487510,-2356.62,0.00019862,2]
[350329959,1737797487519,-2776.17,0.00019862,2]
[350329960,1737797487529,-1575.32,0.00019862,2]
[350329961,1737797487539,-1053.08,0.00019862,2]
[350329962,1737797487550,-3004.39,0.00019862,2]
[350329963,1737797487559,-607.11,0.00019862,2]
[350329964,1737797487568,-854.74,0.00019862,2]
[350329965,1737797487579,-1162.18,0.00019862,2]
[350329966,1737797487590,-966.49,0.00019863,2]
[350329967,1737797487601,-1692.78,0.00019863,2]
[350329968,1737797487612,-1322.88,0.00019863,2]
[350329969,1737797487623,-3207.34,0.00019863,2]
[350329970,1737797487634,-1220.06,0.00019863,2]
[350329971,1737797487643,-1876.29,0.00019863,2]
[350329972,1737797487652,-3623.03,0.00019863,2]
[350329973,1737797487663,-1095.65,0.00019863,2]
[350329974,1737797487672,-893.22,0.00019863,2]
[350329975,1737797487682,-2172.47,0.00019863,2]
[350329976,1737797487691,-3965.67,0.00019863,2]
[350329977,1737797487701,-727.17,0.00019863,2]
[350329978,1737797487711,-993.89,0.00019863,2]
[350329979,1737797487720,-1799.67,0.00019863,2]
[350329980,1737797487729,-849.75,0.00019863,2]
[350329981,1737797487739,-681.52,0.00019863,2]
[350329982,1737797487748,-319.33388806,0.00019863,2]
[350329983,1737797487757,-283.3227999,0.00019863,2]
[350329984,1737797487766,-549.73,0.00019863,2]
[350329985,1737797487775,-807.75,0.00019863,2]
[350329986,1737797487784,-1101.59,0.00019863,2]
[350329987,1737797487794,-1244.19,0.00019863,2]
[350329988,1737797487803,-638.58,0.00019863,2]
[350329989,1737797487812,-2982.69,0.00019863,2]
[350329990,1737797487821,-150.0,0.00019865,4]
[350329991,1737797487831,-150.0,0.00019869,2]
[350329992,1737797487841,-74968.61728753,0.0001987,2]
[350329993,1737797487850,-150.0,0.00019873,2]
[350329994,1737797487861,-150.0,0.00019875,4]
[350329995,1737797487871,-152.0,0.00019875,3]
[350329996,1737797487880,-3051.9539828,0.00019886,2]
[350329997,1737797487889,-500.0,0.00019888,2]
[350329998,1737797487898,-500.0,0.00019888,2]
[350329999,1737797487907,-500.0,0.00019888,2]
[350330000,1737797487917,-500.0,0.00019888,2]
[350330001,1737797487927,-500.0,0.00019888,2]
[350330002,1737797487936,-451.5545,0.00019888,2]
[350330003,1737797487946,-1000.0,0.00019888,2]
[350330004,1737797487955,-1000.0,0.00019888,2]
[350330005,1737797487964,-594.5553,0.00019888,2]
[350330006,1737797487974,-553.97,0.00019896,2]
[350330007,1737797487984,-584.38,0.00019896,2]
[350330008,1737797487993,-644.23316015,0.00019896,2]
[350330009,1737797488003,-584.16,0.00019896,2]
[350330010,1737797488012,-647.83,0.00019896,2]
[350330011,1737797488021,-572.01,0.00019896,2]
[350330012,1737797488031,-281.52736601,0.00019896,2]
[350330013,1737797488040,-704.28,0.00019896,2]
[350330014,1737797488050,-683.65,0.00019896,2]
[350330015,1737797488059,-544.45,0.00019896,2]
[350330016,1737797488068,-668.98,0.00019896,2]
[350330017,1737797488078,-558.68,0.00019896,2]
[350330018,1737797488087,-596.36,0.00019896,2]
[350330019,1737797488097,-531.39,0.00019896,2]
[350330020,1737797488106,-599.6,0.00019896,2]
[350330021,1737797488116,-703.57,0.00019896,2]
[350330022,1737797488125,-577.49,0.00019896,2]
[350330023,1737797488135,-767.15,0.00019896,2]
[350330024,1737797488145,-730.31,0.00019896,2]
[350330025,1737797488154,-502.52,0.00019896,2]
[350330026,1737797488164,-734.62,0.00019896,2]
[350330027,1737797488173,-685.56,0.00019896,2]
[350330028,1737797488183,-730.02,0.00019896,2]
[350330029,1737797488193,-509.44,0.00019896,2]
[350330030,1737797488203,-590.44,0.00019896,2]
[350330031,1737797488212,-564.49,0.00019896,2]
[350330032,1737797488222,-602.74,0.00019896,2]
[350330033,1737797488232,-670.66,0.00019896,2]
[350330034,1737797488242,-542.87,0.00019896,2]
[350330035,1737797488252,-599.52,0.00019896,2]
[350330036,1737797488261,-717.06,0.00019896,2]
[350330037,1737797488271,-251.942098,0.00019897,2]
[350330038,1737797488281,-251.942098,0.00019897,2]
[350330039,1737797488291,-156008.11320245,0.000199,2]
[350330040,1737797488300,-151.0,0.000199,2]
[350330041,1737797488310,-1600.0,0.000199,7]
[350330042,1737797488320,-5513.42827001,0.000199,7]
[350330043,1737797488330,-150.0,0.00019904,2]
[350330044,1737797488339,-1000.0,0.00019908,2]
[350330045,1737797488349,-150.0,0.00019912,4]
[350330046,1737797488359,-150.0,0.00019916,4]
[350330047,1737797488369,-150.0,0.00019922,2]
[350330048,1737797488378,-150.0,0.00019925,2]
[350330049,1737797488388,-150.0,0.00019927,2]
[350330050,1737797488398,-900.86162329,0.00019927,2]
[350330051,1737797488406,-150.0,0.00019929,4]
[350330052,1737797488416,-180.27134514,0.00019941,2]
[350330053,1737797488425,-150.0,0.00019949,4]
[350330054,1737797488435,-151.14570161,0.00019951,2]
[350330055,1737797488445,-58401.0,0.00019973,2]
[350330056,1737797488454,-176874.0,0.00019973,2]
[350330057,1737797488464,-151.0,0.00019973,2]
[350330058,1737797488475,-151.0,0.00019973,2]
[350330059,1737797488485,-1526.9884984,0.00019981,2]
[350330060,1737797488495,-1924.5609737,0.00019981,2]
[350330061,1737797488504,-2719.4813678,0.00019981,2]
[350330062,1737797488515,-1364.8455152,0.00019986,2]
[350330063,1737797488524,-1722.4536856,0.00019986,2]
[350330064,1737797488535,-4395.691945,0.00019986,2]
[350330065,1737797488551,-3819.9404283,0.00019986,2]
[350330066,1737797488560,-6400.5037174,0.00019986,2]
[350330067,1737797488570,-5562.1602281,0.00019986,2]
[350330068,1737797488579,-2440.5767945,0.00019986,2]
[350330069,1737797488590,-2670.3882057,0.00019986,2]
[350330070,1737797488600,-150.0,0.00019986,4]
[350330071,1737797488609,-308536.6552355,0.00019988,2]
[350330072,1737797488619,-151.0,0.00019988,2]
[350330073,1737797488628,-251.942098,0.00019988,2]
[350330074,1737797488638,-251.942098,0.00019988,2]
[350330075,1737797488648,-150.0,0.00019994,4]
[350330076,1737797488658,-847.51,0.00019996,2]
[350330077,1737797488667,-892.9,0.00019996,2]
[350330078,1737797488677,-810.96,0.00019996,2]
[350330079,1737797488686,-2187.67,0.00019996,2]
[350330080,1737797488696,-790.46,0.00019996,2]
[350330081,1737797488706,-1160.27,0.00019996,2]
[350330082,1737797488715,-1757.48,0.00019996,2]
[350330083,1737797488726,-1272.01,0.00019996,2]
[350330084,1737797488736,-2144.12,0.00019996,2]
[350330085,1737797488746,-1761.29,0.00019996,2]
[350330086,1737797488755,-7035.21324828,0.00019997,2]
[350330087,1737797488765,-948.3,0.00019997,2]
[350330088,1737797488774,-660.28034561,0.00019998,2]
[350330089,1737797488784,-556.40898101,0.00019998,2]
[350330090,1737797488793,-557.00776287,0.00019998,2]
[350330091,1737797488803,-554.64,0.00019998,2]
[350330092,1737797488812,-520.91,0.00019998,2]
[350330093,1737797488822,-670.8,0.00019998,2]
[350330094,1737797488831,-602.32443795,0.00019998,2]
[350330095,1737797488840,-680.37678131,0.00019998,2]
[350330096,1737797488849,-529.26,0.00019998,2]
[350330097,1737797488859,-859.93001783,0.00019999,2]
[350330098,1737797488869,-1261.3438672,0.00019999,2]
[350330099,1737797488878,-887.07792834,0.00019999,2]
[350330100,1737797488887,-751.881699,0.00019999,2]
[350330101,1737797488896,-1965.50718188,0.00019999,2]
[350330102,1737797488906,-1750.53965619,0.00019999,2]
[350330103,1737797488915,-620.82111038,0.00019999,2]
[350330104,1737797488924,-911.51691425,0.00019999,2]
[350330105,1737797488933,-1144.92055237,0.00019999,2]
[350330106,1737797488943,-3470.45924517,0.00019999,2]
[350330107,1737797488953,-670.68293913,0.00019999,2]
[350330108,1737797488962,-931.68372556,0.00019999,2]
[350330109,1737797488971,-1892.48032332,0.00019999,2]
[350330110,1737797488981,-1137.87420091,0.00019999,2]
[350330111,1737797488990,-526.59162681,0.00019999,2]
[350330112,1737797488999,-2356.63422505,0.00019999,2]
[350330113,1737797489008,-2776.3164139,0.00019999,2]
[350330114,1737797489017,-1575.46505789,0.00019999,2]
[350330115,1737797489026,-1053.18472895,0.00019999,2]
[350330116,1737797489035,-3004.44273013,0.00019999,2]
[350330117,1737797489045,-607.1378761,0.00019999,2]
[350330118,1737797489054,-854.77,0.00019999,2]
[350330119,1737797489065,-1162.38873101,0.00019999,2]
[350330120,1737797489074,-10507.78701423,0.0002,2]
[350330121,1737797489083,-240782.95841308,0.0002,2]
[350330122,1737797489520,-500.0,0.00016849,2]
[350330123,1737797489563,-254.28,0.00016849,2]
[350330124,1737797489573,-266.02377282,0.00016849,2]
[350330125,1737797489585,-338.41389016,0.00016849,2]
[350330126,1737797489601,-149.84233702,0.00016849,2]
[350330127,1737797489611,-754.28,0.00016849,2]
[350330128,1737797489620,-754.28,0.00016982,2]
[350330129,1737797489630,-423.83901992,0.00016983,2]
[350330130,1737797489642,-13.35415121,0.00016983,2]
[350330131,1737797489651,-754.28,0.00017119,2]
[350330132,1737797489661,-754.28,0.00017259,2]
[350330133,1737797489671,-500.0,0.0001726,2]
[350330134,1737797489680,-500.0,0.00017397,2]
[350330135,1737797489690,-943.03548939,0.00017534,2]
[350330136,1737797489706,-512.35152802,0.00017534,2]
[350330137,1737797489720,-270.6225767,0.00017534,2]
[350330138,1737797489742,-723.10633289,0.00017534,2]
[350330139,1737797489753,-2918.09792665,0.00017534,2]
[350330140,1737797489974,-471.33587479,0.000117,2]
[350330141,1737797489984,-500.0,0.00016438,2]
[350330142,1737797489993,-272.76412516,0.00016575,2]
[350330143,1737797490521,-227.23587484,0.00016575,2]
[350330144,1737797490533,-500.0,0.00016882,2]
[350330145,1737797490547,-500.0,0.00017019,2]
[350330146,1737797490558,-588.92671614,0.00017156,2]
[350330147,1737797490567,-754.28,0.0001743,2]
[350330148,1737797490578,-327.91614635,0.00017534,2]
[350330149,1737797490587,-500.0,0.00017534,2]
[350330150,1737797490596,-754.28,0.00017668,2]
[350330151,1737797490605,-5695.13,0.00017671,2]
[350330152,1737797490616,-500.0,0.00017671,2]
[350330153,1737797490626,-5695.13,0.00017808,2]
[350330154,1737797490635,-500.0,0.00017808,2]
[350330155,1737797490645,-754.28,0.00017841,2]
[350330156,1737797490655,-5695.13,0.00017945,2]
[350330157,1737797490664,-500.0,0.00017945,2]
[350330158,1737797490674,-754.28,0.00018079,2]
[350330159,1737797490683,-5695.13,0.00018082,2]
[350330160,1737797490692,-500.0,0.00018082,2]
[350330161,1737797490702,-5695.13,0.00018219,2]
[350330162,1737797490712,-465.85,0.00018219,2]
[350330163,1737797490721,-754.28,0.00018278,2]
[350330164,1737797490731,-5695.13,0.00018356,2]
[350330165,1737797490741,-754.28,0.00018489,2]
[350330166,1737797490750,-5695.13,0.00018493,2]
[350330167,1737797490760,-5695.13,0.0001863,2]
[350330168,1737797490769,-754.28,0.00018663,2]
[350330169,1737797490779,-5695.13,0.00018767,2]
[350330170,1737797490789,-754.28,0.00018901,2]
[350330171,1737797490798,-5695.13,0.00018904,2]
[350330172,1737797490808,-5695.13,0.00019041,2]
[350330173,1737797490818,-754.28,0.00019174,2]
[350330174,1737797490828,-5695.13,0.00019178,2]
[350330175,1737797490837,-1270.0,0.00019226,2]
[350330176,1737797490847,-2048.69,0.00019315,2]
[350330177,1737797490856,-5695.13,0.00019315,2]
[350330178,1737797490865,-754.28,0.00019348,2]
[350330179,1737797490875,-1367.72,0.00019452,2]
[350330180,1737797490885,-2048.69,0.00019452,2]
[350330181,1737797490895,-5695.13,0.00019452,2]
[350330182,1737797490905,-1367.85684781,0.00019589,2]
[350330183,1737797490914,-2048.91643269,0.00019589,2]
[350330184,1737797490924,-5695.13,0.00019589,2]
[350330185,1737797490933,-5695.13,0.00019726,2]
[350330186,1737797490942,-5695.13,0.00019863,2]
[350330187,1737797490951,-286983.02195287,0.0002,2]
[350330188,1737797490969,-500.0,0.00016712,2]
[350330189,1737797490978,-12191.2692979,0.0002,2]
[350330190,1737797491087,-500.0,0.00016849,2]
[350330191,1737797491095,-500.0,0.00016849,2]
[350330192,1737797491104,-500.0,0.00016882,2]
[350330193,1737797491113,-272.56,0.00016986,2]
[350330194,1737797491122,-500.0,0.00016986,2]
[350330195,1737797491132,-500.0,0.00017019,2]
[350330196,1737797491141,-10.64,0.00017123,2]
[350330197,1737797491153,-502.00764449,0.00017123,2]
[350330198,1737797491162,-500.0,0.00017156,2]
[350330199,1737797491171,-388.29819646,0.00017293,2]
[350330200,1737797491187,-111.70180354,0.00017293,2]
[350330201,1737797491196,-163.09819356,0.0001743,2]
[350330202,1737797491207,-336.90180644,0.0001743,2]
[350330203,1737797491216,-500.0,0.00017567,2]
[350330204,1737797491225,-754.28,0.00019586,2]
[350330205,1737797491235,-81.91819356,0.00019799,2]
[350330206,1737797491246,-672.36180644,0.00019799,2]
[350330207,1737797491256,-267.58819431,0.0001986,2]
[350330208,1737797491267,-486.69180569,0.0001986,2]
[350330209,1737797491277,-754.28,0.00019972,2]
[350330210,1737797491286,-512.21679372,0.00019972,2]
[350330214,1737797918977,151.13,0.00010137,2]
[350330220,1737798355176,-174.28,0.00012329,2]
[350330221,1737798355196,-254.92382419,0.00013781,7]
[350330222,1737798355217,-569.28289788,0.00015116,2]
[350330223,1737798411078,-172.39,0.00012329,2]
[350330224,1737798411099,-82.53555414,0.00015116,2]
[350330225,1737798425091,-847.3181039,0.00015116,2]
[350330226,1737798425115,-160.08,0.0001545,2]
[350330227,1737798425137,-250.0,0.00015538,2]
[350330228,1737798425158,-245.73884115,0.00015642,2]
[350330229,1737798425181,-562.41917931,0.00015642,2]
[350330230,1737798425203,-1159.41,0.00015742,2]
[350330231,1737798425224,-671.37,0.00015742,2]
[350330232,1737798425244,-150.0,0.00015836,2]
[350330233,1737798425264,-250.0,0.00015855,2]
[350330234,1737798425284,-2259.29507701,0.00015855,2]
[350330235,1737798425315,-319.27480398,0.00015855,2]
[350330236,1737798450121,-1259.97,0.00013682,2]
[350330237,1737798450145,-2863.15063141,0.00015855,2]
[350330238,1737798489014,-172.23,0.00012721,2]
[350330239,1737798496692,-1000.0,0.00015803,2]
[350330240,1737798496715,-300.0,0.00015854,2]
[350330241,1737798496737,-8527.77,0.00015855,2]
[350330253,1737798632429,-163.8258941,0.00015776,2]
[350330254,1737798632438,-2364.39495209,0.00015855,2]